Cogmind - Beta 11 X6 @@@ ROGUE MODE // 2021.07.17 @ 17:49:07 Player: AlmondRoll Result: Destroyed by as-97035 with Assembled Focal Cannon Performance ------------- Evolutions (3) 1500 Regions Visited (11) 2200 Robots Destroyed (127) 635 Value Destroyed (3265) 3265 Prototype IDs (25) 500 Alien Tech Used (0) 0 Bonus (845) 845 TOTAL SCORE: 8945 Bonus ------- High Alert Combat Kills 34 Destroyed Z-Imprinter 1000 Exposed GOLEM Chamber 500 Friendly Fire -689 Cogmind --------- Core Integrity 0/700 Matter 275/300 Energy 597/700 System Corruption 0% Temperature Warm (116) Movement Core (150) Ox2 Location -7/Deep Caves Parts ------- > --- POWER (1) -------- (None) > --- PROPULSION (5) --- (None) > --- UTILITY (4) ------ Zionite Biocell Zionite Weapon Casing Zionite Weapon Casing > --- WEAPON (3) ------- Zionite Laser-S > --- INVENTORY (5) ---- Mini Grenade Launcher Peak State ------------ > --- POWER ------------ Zionite Light DM Reactor > --- PROPULSION ------- Zionite Glidesys I Zionite Glidesys I Zionite Glidesys I Zionite Glidesys I Zionite Glidesys I > --- UTILITY ---------- Experimental Heat Sink Zionite Weapon Casing Zionite Light Carapace Zionite Light Carapace > --- WEAPON ----------- Zionite Laser-S Zionite Laser-S Zionite Phaser-S > --- INVENTORY -------- Zionite Biocell Zionite Weapon Casing Zionite Light Carapace Zionite Light Carapace Mini Grenade Launcher [Rating: 84] Favorites ----------- Power Heavy Ion Engine Engine Heavy Ion Engine Power Core Micro Nuclear Core Reactor Zionite Light DM Reactor Propulsion Light Treads Treads Light Treads Leg Aluminum Leg Wheel Compact Wheel Hover Unit Aerolev Unit Flight Unit Improved VTOL Module Utility Light Armor Plating Device Improved Heat Sink Storage Large Storage Unit Processor Improved Signal Interpreter Hackware Hacking Suite Protection Light Armor Plating Weapon Improved Assault Rifle Energy Gun Small Laser Ballistic Gun Improved Assault Rifle Ballistic Cannon Light Cannon Launcher Mini Grenade Launcher Slashing Weapon Phasing Sabre Build | -11 -10 -10 -9 -9 -9 -8 -8 -7 -7 -7 -7 ------- Run | Scr Mat Min Mat Min Exi Min Mat Fac Low Zio Dee Slots Evolved 6 | . . . 2 . . . 2 2 . . . Power . | . . . . . . . . . . . . Propulsion 3 | . . . . . . . 2 1 . . . Utility 2 | . . . 1 . . . . 1 . . . Weapon 1 | . . . 1 . . . . . . . . Parts Attached 169 | 3 10 3 26 2 . . 13 51 5 11 45 Power 12 | . 1 1 3 . . . . 4 . . 3 Engine 7 | . 1 1 3 . . . . 2 . . . Core 2 | . . . . . . . . 2 . . . Reactor 3 | . . . . . . . . . . . 3 Propulsion 52 | 2 4 2 5 . . . 4 20 . 1 14 Treads 9 | . 2 2 5 . . . . . . . . Leg . | . . . . . . . . . . . . Wheel 4 | 2 2 . . . . . . . . . . Hover 20 | . . . . . . . . 5 . 1 14 Flight 19 | . . . . . . . 4 15 . . . Utility 63 | . 3 . 7 2 . . 6 19 3 4 19 Device 18 | . 1 . 3 . . . 1 8 2 1 2 Storage 7 | . 1 . 1 1 . . 2 . . . 2 Processor 5 | . . . . . . . 2 1 . . 2 Hackware 2 | . . . . . . . . 2 . . . Protection 31 | . 1 . 3 1 . . 1 8 1 3 13 Artifact . | . . . . . . . . . . . . Weapon 42 | 1 2 . 11 . . . 3 8 2 6 9 Energy Gun 4 | 1 . . . . . . . . . . 3 Energy Cannon . | . . . . . . . . . . . . Ballistic Gun 29 | . 2 . 8 . . . 3 7 1 4 4 Ballistic Cannon 3 | . . . 3 . . . . . . . . Launcher 5 | . . . . . . . . 1 1 1 2 Special Weapon . | . . . . . . . . . . . . Impact Weapon . | . . . . . . . . . . . . Slashing Weapon 1 | . . . . . . . . . . 1 . Piercing Weapon . | . . . . . . . . . . . . Special Melee Weapon . | . . . . . . . . . . . . Unidentified Prototypes 19 | . . . 2 1 . . 1 6 . . 9 Parts Lost 34 | . 2 . 1 . . . . 3 . . 28 Power 2 | . . . . . . . . . . . 2 Propulsion 14 | . 1 . . . . . . 1 . . 12 Utility 12 | . . . . . . . . 2 . . 10 Weapon 6 | . 1 . 1 . . . . . . . 4 Highest Loss Streak 13 | . 1 . 1 . . . . 2 . . 13 Average Slot Usage (%) 95 | . 89 100 99 100 100 100 97 96 100 95 79 Engine 7 | . 14 14 10 11 11 11 9 3 . . . Core 1 | . . . . . . . . 3 7 7 . Treads 11 | . 8 26 22 22 22 22 . . . . . Wheel 2 | . 19 1 . . . . . . . . . Hover 8 | . . . . . . . . 11 30 32 28 Flight 6 | . . . . . . . 35 25 7 4 . Device 6 | . . . 7 11 11 11 10 9 2 4 6 Storage 9 | . 14 14 11 11 11 11 6 7 7 4 . Processor 2 | . . . . . . . 2 4 7 3 6 Protection 10 | . 3 14 14 10 11 11 6 4 12 15 12 Energy Gun 2 | . 10 . . . . . . . . . 8 Ballistic Gun 22 | . 17 28 24 33 33 33 27 21 22 15 5 Ballistic Cannon 1 | . . . 8 . . . . . . . . Naked Turns . | . . . . . . . . . . . . Heaviest Build 44 | 13 30 34 43 44 39 39 25 28 29 38 32 Greatest Support 70 | 32 40 40 40 40 40 40 26 34 33 41 70 Greatest Overweight (x) 8 | . . . 1 1 . . . 8 . 1 . Average Overweight (x) . | . . . . . . . . . . . . Largest Inventory Capacity 15 | 8 15 15 15 15 15 15 15 8 8 8 5 Average Capacity 10 | 8 9 15 15 15 15 15 7 8 8 6 5 Most Carried 15 | 6 12 15 15 15 15 15 14 8 8 8 5 Average Carried 10 | 4 6 14 14 15 15 15 7 7 8 6 4 Final Capacity 15 | 8 15 15 15 15 15 15 8 8 8 5 5 Final Carried 15 | 4 12 15 15 15 15 15 8 8 8 5 1 Class Distribution -------------------- 34% | Scavenger-Tank 32% | Mutant 12% | Sprinter 8% | Skirmisher 7% | Tank 3% | Scavenger-Mutant Dominant Class ---------------- Mutant | -10/Materials Mutant | -10/Mines Scavenger-Tank | -9/Materials Scavenger-Tank | -9/Mines Scavenger-Tank | -9/Exiles Scavenger-Tank | -8/Mines Sprinter | -8/Materials Sprinter | -7/Factory Tank | -7/Lower Caves Mutant | -7/Zion Scavenger-Mutant | -7/Deep Caves Resources | -11 -10 -10 -9 -9 -9 -8 -8 -7 -7 -7 -7 ----------- Run | Scr Mat Min Mat Min Exi Min Mat Fac Low Zio Dee Matter Collected 5935 | 234 197 86 599 426 850 21 59 2260 410 151 642 Remotely . | . . . . . . . . . . . . Salvage Created 5292 | 83 673 264 905 365 . . 77 2022 365 . 538 Parts 262 | 2 32 14 71 17 . . 3 83 17 . 23 Haulers Intercepted 11 | . 2 . 4 . . . 1 4 . . . Recyclers Shooed 7 | 1 1 . 3 . . . . 2 . . . Parts Field Recycled . | . . . . . . . . . . . . Retrieved Matter . | . . . . . . . . . . . . Parts Self-Destructed 17 | . . . . . . . . . 17 . . Prevented . | . . . . . . . . . . . . Kills | -11 -10 -10 -9 -9 -9 -8 -8 -7 -7 -7 -7 ------- Run | Scr Mat Min Mat Min Exi Min Mat Fac Low Zio Dee Combat Hostiles Destroyed 83 | . 13 6 13 4 . . . 22 7 . 18 Guns 66 | . 13 6 11 4 . . . 19 4 . 9 Cannons 2 | . . . 2 . . . . . . . . AOE 15 | . . . . . . . . 3 3 . 9 Classes Destroyed 15 | 2 4 . 3 . . . 1 2 1 . 2 Worker 8 | . . . 3 2 . . . 3 . . . Builder 3 | . 1 . 1 . . . . 1 . . . Tunneler 3 | 1 . 1 . . . . . 1 . . . Hauler 11 | . 2 . 4 . . . 1 4 . . . Recycler 14 | 1 2 . 3 2 . . . 6 . . . Operator 4 | . . . . . . . 1 3 . . . Watcher 6 | . . . 2 . . . . 4 . . . Swarmer 19 | . 6 . 6 4 . . . . 3 . . Grunt 31 | . 7 6 2 . . . . 16 . . . Sentry 7 | . . . 5 . . . . 2 . . . Hunter 3 | . . . . . . . . 3 . . . Programmer 1 | . . . . . . . . 1 . . . Z-Technician 5 | . . . . . . . . . . . 5 Z-Light 11 | . . . . . . . . . . . 11 Assembled 6 | . . . . . . . . . . . 6 Thug 1 | . . . . . . . . . 1 . . Butcher 3 | . . . . . . . . . 3 . . Best Kill Streak 8 | 2 3 2 8 7 . . 1 6 3 . 7 Combat Bots Only 5 | . 3 2 3 4 . . . 4 3 . 5 Max Kills in Single Turn 7 | 2 1 1 2 1 . . 1 2 2 . 7 Gunslinging 1 | . . . . . . . . . . . 1 Exploded 2 | . . . . . . . . 2 2 . 2 Melee . | . . . . . . . . . . . . Uniques/NPCs Destroyed 2 | . . . . 1 . . . . . . 1 YI-UF0 (-9/Mines) Z-Imprinter (-7/Deep Caves) Combat | -11 -10 -10 -9 -9 -9 -8 -8 -7 -7 -7 -7 -------- Run | Scr Mat Min Mat Min Exi Min Mat Fac Low Zio Dee Damage Taken 5847 | 26 460 215 463 94 . . 122 957 102 . 3408 Core 918 | 13 53 26 63 9 . . 32 108 . . 614 Absorbed by Shields . | . . . . . . . . . . . . Core Remaining (%) 83 | 94 . 63 . . . 82 94 . . . . Volleys Fired 374 | 4 61 22 50 11 . . 4 135 22 . 65 Largest 3 | 2 2 2 3 3 . . 3 3 3 . 3 Hottest 180 | 60 60 40 78 66 . . 69 71 71 . 180 Shots Fired 921 | 8 121 44 144 33 . . 12 376 59 . 124 Gun 862 | 8 121 44 106 33 . . 12 371 56 . 111 Cannon 38 | . . . 38 . . . . . . . . Launcher 21 | . . . . . . . . 5 3 . 13 Special . | . . . . . . . . . . . . Kinetic 775 | 4 69 44 144 33 . . 12 371 56 . 42 Thermal 90 | . 52 . . . . . . . . . 38 Explosive 21 | . . . . . . . . 5 3 . 13 Electromagnetic 4 | 4 . . . . . . . . . . . Phasic 31 | . . . . . . . . . . . 31 Robot Hit Streak 16 | 2 12 12 14 6 . . 11 16 5 . 10 Robot Miss Streak 6 | 1 3 3 3 2 . . 2 6 3 . 4 Penetration Max . | . . . . . . . . . . . . Secondary Targets 8 | . . 1 . 1 . . . 4 1 . 1 Max Gunslinging Chain 1 | . . 1 . 1 . . . 1 1 . 1 Shots Hit Robots 548 | 5 77 33 91 17 . . 9 223 29 . 64 Core Hits 269 | 3 36 16 41 10 . . 3 89 16 . 55 Critical Kills 3 | . . . . . . . . 3 . . . Critical Parts Destroyed 2 | . . 1 . . . . . 1 . . . Critical Strikes 8 | . . 1 2 . . . . 4 . . 1 Destroy 5 | . . 1 . . . . . 4 . . . Blast 2 | . . . 2 . . . . . . . . Intensify 1 | . . . . . . . . . . . 1 Melee Attacks 14 | . . . . . . . . . . 14 . Impact . | . . . . . . . . . . . . Slashing 14 | . . . . . . . . . . 14 . Piercing . | . . . . . . . . . . . . Sneak Attacks . | . . . . . . . . . . . . Combat Hostiles . | . . . . . . . . . . . . Follow-up Attacks . | . . . . . . . . . . . . Damage Inflicted 12995 | 89 720 298 1282 246 . 29 135 3753 692 . 5751 Guns 7587 | 68 715 268 794 245 . . 135 3420 476 . 1466 Cannons 441 | . . . 441 . . . . . . . . Explosions 4855 | 21 . . . . . . . 333 216 . 4285 Melee . | . . . . . . . . . . . . Ramming 112 | . 5 30 47 1 . 29 . . . . . Kinetic 6466 | 25 321 268 1235 245 . . 135 3420 476 . 341 Thermal 4323 | 21 394 . . . . . . . . . 3908 Explosive 1424 | . . . . . . . . 333 216 . 875 Electromagnetic 43 | 43 . . . . . . . . . . . Impact . | . . . . . . . . . . . . Slashing . | . . . . . . . . . . . . Piercing . | . . . . . . . . . . . . Phasic 627 | . . . . . . . . . . . 627 Highest Corruption 7 | . 3 3 . . . . . 7 7 7 . Average Corruption 4 | . 2 3 . . . . . 5 7 7 . Corruption Purged . | . . . . . . . . . . . . Effects 79 | . 11 20 . . . . . 34 14 . . Message Errors 22 | . 4 10 . . . . . 6 2 . . Matter Fused 21 | . 4 3 . . . . . 10 4 . . Heat Flow Errors 7 | . . . . . . . . 5 2 . . Energy Discharges 8 | . 2 2 . . . . . 3 1 . . Data Loss (minor) 14 | . 1 5 . . . . . 4 4 . . Data Loss (major) 3 | . . . . . . . . 3 . . . Misfires 1 | . . . . . . . . 1 . . . Weapon Failures 3 | . . . . . . . . 2 1 . . Overload Shots . | . . . . . . . . . . . . Overflow Damage 941 | . . . 3 . . . . 3 . . 935 Projectiles . | . . . . . . . . . . . . Explosions 938 | . . . . . . . . 3 . . 935 Melee 3 | . . . 3 . . . . . . . . Knockbacks 3 | . . 1 2 . . . . . . . . Impact 1 | . . 1 . . . . . . . . . Kinetic 2 | . . . 2 . . . . . . . . Secondary . | . . . . . . . . . . . . Self-Inflicted Damage 505 | 26 . . . . . . . . 46 . 433 Shots 4 | 1 . . . . . . . . 1 . 2 Rammed 22 | . 3 4 9 1 . 5 . . . . . Targets Rammed 24 | . 3 5 9 2 . 5 . . . . . Kicked . | . . . . . . . . . . . . Crushed 2 | . . 1 . 1 . . . . . . . Highest Temperature 311 | 32 103 79 236 . . . 43 311 189 . 174 Average Temperature 56 | 22 27 30 80 . . . 17 61 42 . 78 Received Heat Transfer 1422 | . 165 144 126 . . . 54 273 . . 660 Effects 1 | . . . 1 . . . . . . . . Interference 1 | . . . 1 . . . . . . . . Siege Activations . | . . . . . . . . . . . . Robots Corrupted . | . . . . . . . . . . . . Combat Hostiles . | . . . . . . . . . . . . Parts Fried . | . . . . . . . . . . . . Impact Corruptions 2 | . . 1 1 . . . . . . . . Robots Melted . | . . . . . . . . . . . . Combat Hostiles . | . . . . . . . . . . . . Parts Melted 2 | . 2 . . . . . . . . . . Heat Transferred 1628 | 50 875 . . . . . . . . . 703 Parts Sabotaged . | . . . . . . . . . . . . Parts Stolen . | . . . . . . . . . . . . Parts Stripped . | . . . . . . . . . . . . Power Chain Reactions 1 | 1 . . . . . . . . . . . Missiles Intercepted . | . . . . . . . . . . . . Alert | -11 -10 -10 -9 -9 -9 -8 -8 -7 -7 -7 -7 ------- Run | Scr Mat Min Mat Min Exi Min Mat Fac Low Zio Dee Peak Influence 554 | 10 188 115 265 223 . . 139 554 . . . Initial 103 | . 6 30 . 103 . . . 63 . . . Average 115 | 7 69 27 119 152 . . 43 246 . . . Maximum Alert Level 2 | . . . 1 1 . . . 2 . . . Low Security (%) 79 | 100 100 100 81 49 . 100 100 48 . . . Level 1 15 | . . . 18 50 . . . 32 . . . Level 2 5 | . . . . . . . . 19 . . . Level 3 . | . . . . . . . . . . . . Level 4 . | . . . . . . . . . . . . Level 5 . | . . . . . . . . . . . . High Security . | . . . . . . . . . . . . Max Security . | . . . . . . . . . . . . Squads Dispatched 12 | . 1 . . . . . 2 9 . . . Investigation 2 | . 1 . . . . . . 1 . . . Extermination 1 | . . . . . . . . 1 . . . Reinforcement 5 | . . . . . . . 2 3 . . . Assault 1 | . . . . . . . . 1 . . . Garrison 3 | . . . . . . . . 3 . . . Intercept . | . . . . . . . . . . . . Construction Impeded . | . . . . . . . . . . . . Haulers Reinforced 2 | . . . . . . . . 2 . . . Active Scanning Responses . | . . . . . . . . . . . . Cargo Convoy Interrupts . | . . . . . . . . . . . . Stealth | -11 -10 -10 -9 -9 -9 -8 -8 -7 -7 -7 -7 --------- Run | Scr Mat Min Mat Min Exi Min Mat Fac Low Zio Dee Distress Signals 5 | . 3 . . . . . . 2 . . . Communications Jammed . | . . . . . . . . . . . . Distress Signals . | . . . . . . . . . . . . Times Spotted 141 | . 27 6 19 4 . . 17 41 8 . 19 Peak Tracking Total 9 | . 6 2 5 4 . . 9 4 4 . 5 Tactical Retreats 9 | . 2 . 2 . . . 2 2 1 . . Traps | -11 -10 -10 -9 -9 -9 -8 -8 -7 -7 -7 -7 ------- Run | Scr Mat Min Mat Min Exi Min Mat Fac Low Zio Dee Traps Triggered 8 | . 4 . . . . . . 4 . . . Indirectly . | . . . . . . . . . . . . Trap Hack Attempts . | . . . . . . . . . . . . Triggered . | . . . . . . . . . . . . Disarmed . | . . . . . . . . . . . . Reprogrammed . | . . . . . . . . . . . . Reused . | . . . . . . . . . . . . Traps Extracted . | . . . . . . . . . . . . Installed . | . . . . . . . . . . . . Triggered . | . . . . . . . . . . . . Machines | -11 -10 -10 -9 -9 -9 -8 -8 -7 -7 -7 -7 ---------- Run | Scr Mat Min Mat Min Exi Min Mat Fac Low Zio Dee Machines Disabled 8 | . . . 1 1 . . . . . . 6 Max in Single Turn 1 | . . . 1 1 . . . . . . 1 Garrison Access 1 | . . . . . . . . 1 . . . Machines Sabotaged . | . . . . . . . . . . . . Garrisons Compromised . | . . . . . . . . . . . . Overloaded Fab Kills . | . . . . . . . . . . . . Fab Network Shutdowns . | . . . . . . . . . . . . Hacking | -11 -10 -10 -9 -9 -9 -8 -8 -7 -7 -7 -7 --------- Run | Scr Mat Min Mat Min Exi Min Mat Fac Low Zio Dee Machines Accessed 34 | . 7 . 6 . 1 . 5 15 . . . Terminals 26 | . 7 . 5 . . . 5 9 . . . Fabricators 2 | . . . . . . . . 2 . . . Repair Stations 2 | . . . . . . . . 2 . . . Recycling Units 2 | . . . 1 . . . . 1 . . . Scanalyzers . | . . . . . . . . . . . . Garrison Access 1 | . . . . . . . . 1 . . . Total Hacks 107 | . 32 . 17 . 1 . 16 41 . . . Successful 54 | . 12 . 8 . 1 . 10 23 . . . Failed 51 | . 19 . 8 . . . 6 18 . . . Catastrophic 6 | . . . 1 . . . . 5 . . . Database Lockouts 2 | . 1 . 1 . . . . . . . . Manual 65 | . 22 . 11 . . . 16 16 . . . Terminals 85 | . 32 . 15 . . . 16 22 . . . Fabricators 3 | . . . . . . . . 3 . . . Repair Stations 13 | . . . . . . . . 13 . . . Recycling Units 4 | . . . 2 . . . . 2 . . . Scanalyzers . | . . . . . . . . . . . . Garrison Access 1 | . . . . . . . . 1 . . . Terminal Hacks 22 | . 7 . 6 . 1 . 5 3 . . . Record 1 | . . . . . 1 . . . . . . Robot Analysis 6 | . 1 . 2 . . . 3 . . . . Prototype ID Bank 3 | . 1 . . . . . . 2 . . . Branch Access Points 1 | . . . 1 . . . . . . . . Terminal Index 3 | . 1 . 1 . . . 1 . . . . Unreport Threat 1 | . 1 . . . . . . . . . . Locate Traps 3 | . 1 . 2 . . . . . . . . Hauler Manifests 3 | . 1 . . . . . 1 1 . . . Registered Components 1 | . 1 . . . . . . . . . . Fabricator Hacks . | . . . . . . . . . . . . Repair Station Hacks 12 | . . . . . . . . 12 . . . Scan Component 6 | . . . . . . . . 6 . . . Repair 6 | . . . . . . . . 6 . . . Recycling Unit Hacks 1 | . . . . . . . . 1 . . . Retrieve Components 1 | . . . . . . . . 1 . . . Scanalyzer . | . . . . . . . . . . . . Garrison Access Hacks 1 | . . . . . . . . 1 . . . Seal Access 1 | . . . . . . . . 1 . . . Unauthorized Hacks 18 | . 5 . 2 . . . 5 6 . . . Terminals 16 | . 5 . 2 . . . 5 4 . . . Track 1 | . . . . . . . 1 . . . . Assimilate 5 | . 2 . . . . . 1 2 . . . Botnet 8 | . 2 . 2 . . . 2 2 . . . Disrupt 1 | . . . . . . . 1 . . . . Operators 1 | . 1 . . . . . . . . . . Fabricators 2 | . . . . . . . . 2 . . . Report 1 | . . . . . . . . 1 . . . Haulers 1 | . . . . . . . . 1 . . . Repair Stations . | . . . . . . . . . . . . Recycling Units . | . . . . . . . . . . . . Scanalyzers . | . . . . . . . . . . . . Garrison Access . | . . . . . . . . . . . . Data Cores Recovered . | . . . . . . . . . . . . Used . | . . . . . . . . . . . . Hacking Detections 29 | . 6 . 6 . . . 5 12 . . . Full Trace Events 3 | . 2 . . . . . . 1 . . . Feedback Events 1 | . . . . . . . . 1 . . . Hackware Fried 1 | . . . . . . . . 1 . . . Feedback Blocked . | . . . . . . . . . . . . Robot Schematics Acquired . | . . . . . . . . . . . . Robots Built . | . . . . . . . . . . . . Matter . | . . . . . . . . . . . . Time . | . . . . . . . . . . . . Total Robot Build Rating . | . . . . . . . . . . . . Part Schematics Acquired . | . . . . . . . . . . . . Parts Built . | . . . . . . . . . . . . Matter . | . . . . . . . . . . . . Time . | . . . . . . . . . . . . Total Part Build Rating . | . . . . . . . . . . . . Parts Repaired 6 | . . . . . . . . 6 . . . Time 295 | . . . . . . . . 295 . . . Parts Recycled . | . . . . . . . . . . . . Recycled Matter . | . . . . . . . . . . . . Retrieved Matter . | . . . . . . . . . . . . Retrieved Components 10 | . . . . . . . . 10 . . . Parts Scanalyzed . | . . . . . . . . . . . . Part Schematics Acquired . | . . . . . . . . . . . . Parts Damaged . | . . . . . . . . . . . . Bothacking | -11 -10 -10 -9 -9 -9 -8 -8 -7 -7 -7 -7 ------------ Run | Scr Mat Min Mat Min Exi Min Mat Fac Low Zio Dee Used RIF Installer . | . . . . . . . . . . . . Robots Hacked . | . . . . . . . . . . . . Non-combat . | . . . . . . . . . . . . Combat . | . . . . . . . . . . . . Robot Hacks Applied . | . . . . . . . . . . . . Relay Couplers Released . | . . . . . . . . . . . . Robots Rewired . | . . . . . . . . . . . . Allies Hacked . | . . . . . . . . . . . . Hacks Repelled . | . . . . . . . . . . . . Allies | -11 -10 -10 -9 -9 -9 -8 -8 -7 -7 -7 -7 -------- Run | Scr Mat Min Mat Min Exi Min Mat Fac Low Zio Dee Total Allies 5 | . 1 1 . . . . 1 2 . . . Largest Group 2 | . 1 1 . . . . 1 2 . . . Highest-Rated Group 31 | . 10 31 . . . . 10 20 . . . Highest-Rated Ally 31 | . 10 31 . . . . 10 10 . . . Total Orders . | . . . . . . . . . . . . Ally Attacks 3 | . . 3 . . . . . . . . . Total Damage 63 | . . 63 . . . . . . . . . Kills . | . . . . . . . . . . . . Allies Corrupted . | . . . . . . . . . . . . Allies Melted . | . . . . . . . . . . . . Intel | -11 -10 -10 -9 -9 -9 -8 -8 -7 -7 -7 -7 ------- Run | Scr Mat Min Mat Min Exi Min Mat Fac Low Zio Dee Robot Analysis Total 6 | . 1 . 2 . . . 3 . . . . Derelict Logs Recovered 5 | . . 1 . 1 . . . . 1 2 . Drone Launches . | . . . . . . . . . . . . Drone Recoveries . | . . . . . . . . . . . . Exploration | -11 -10 -10 -9 -9 -9 -8 -8 -7 -7 -7 -7 ------------- Run | Scr Mat Min Mat Min Exi Min Mat Fac Low Zio Dee Turns Passed 8722 | 47 1023 967 1064 478 728 748 177 1611 311 705 863 Spaces Moved 9056 | 32 701 568 470 273 456 462 421 2397 563 1495 1218 Core 68 | . . . . . . . . 1 . . 67 Treads 2311 | . 128 522 470 273 456 462 . . . . . Legs . | . . . . . . . . . . . . Wheels 651 | 32 573 46 . . . . . . . . . Hover 4024 | . . . . . . . . 815 563 1495 1151 Flight 2002 | . . . . . . . 421 1581 . . . Fastest Speed 25 | 100 100 100 160 160 160 160 31 25 40 38 38 Average Speed 74 | 100 110 155 171 160 160 160 31 30 40 42 47 Slowest Speed 450 | 100 160 160 260 260 160 160 31 450 40 100 60 Overloaded Moves . | . . . . . . . . . . . . Propulsion Burnouts . | . . . . . . . . . . . . Robots Hopped 22 | . . . . . . . 4 18 . . . Cave-ins Triggered . | . . . . . . . . . . . . Exploration Rate (%) 64 | 3 93 94 46 52 90 93 36 49 54 85 84 Regions Visited 11 Branch Regions 7 Pre-discovered Areas 4 | . . 1 . . 1 . . . 1 1 . Known Exits Taken 5 | . . . 1 . . . 1 1 1 1 . Unknown Exits Taken 6 | 1 1 1 . 1 1 1 . . . . . Scrap Searched 12 | . . 2 . 1 . 1 . . 4 4 . Spaces Dug 3 | . . . . . . . . . . 3 . Terrain Destroyed 98 | . . . . . . . . 9 22 3 64 Melee 3 | . . . . . . . . . . 3 . Projectile 6 | . . . . . . . . . . . 6 AOE 89 | . . . . . . . . 9 22 . 58 Terrain Rammed . | . . . . . . . . . . . . Walls Destroyed . | . . . . . . . . . . . . Machines Disabled . | . . . . . . . . . . . . Actions | -11 -10 -10 -9 -9 -9 -8 -8 -7 -7 -7 -7 --------- Run | Scr Mat Min Mat Min Exi Min Mat Fac Low Zio Dee Total 10306 | 40 833 618 633 290 455 468 455 2974 608 1537 1395 Wait 471 | . 48 11 32 2 . 2 4 328 17 1 26 Move 9003 | 31 700 567 469 272 455 461 412 2362 562 1494 1218 Hop 20 | . . . . . . . 4 16 . . . Pick Up 77 | . 10 6 19 . . . 6 19 1 5 11 Fast Attach 76 | . 1 . 4 1 . . 4 29 . 7 30 Attach 27 | 2 2 . 3 . . . 3 7 . . 10 Detach 8 | . . . . . . . 1 5 . . 2 Swap 66 | 1 7 3 19 1 . . 6 15 5 4 5 Drop 128 | 2 1 4 28 1 . . 11 40 1 12 28 Fire 374 | 4 61 22 50 11 . . 4 135 22 . 65 Melee 14 | . . . . . . . . . . 14 . Ram . | . . . . . . . . . . . . Kick . | . . . . . . . . . . . . Crush 24 | . 3 5 9 2 . 5 . . . . . Escape Stasis 18 | . . . . . . . . 18 . . . Rewire . | . . . . . . . . . . . . Trap . | . . . . . . . . . . . . Miscellaneous . | . . . . . . . . . . . . Route ------- -11/Scrapyard -10/Materials (discovered 3 exits: *Mat x2 / [*Min]) -10/Mines (discovered 2 exits: *Mat x2) -9/Materials (discovered 3 exits: *Mat / *Min x2) -9/Mines -9/Exiles (discovered 2 exits: [*Min x2]) -8/Mines (discovered 2 exits: *Mat x2) -8/Materials (discovered 2 exits: *Fac x2) -7/Factory (discovered 5 exits: [*Fac x2] / *Sto / *Low x2) -7/Lower Caves (discovered 2 exits: [*Low] / *Zio) -7/Zion (discovered 2 exits: *Dee / [*Pro]) -7/Deep Caves (discovered 1 exit: [*Pro]) History --------- Turn | Location | Event 16 | -11/Scrapyard | Discovered new exit (range 3) 48 | -11/Scrapyard | Entered Materials 118 | -10/Materials | Discovered new exit (range 4) 127 | -10/Materials | Central database locked down 223 | -10/Materials | Discovered new exit (range 8) 314 | -10/Materials | Build established: Mutant 619 | -10/Materials | Discovered new exit (range 5) 1071 | -10/Materials | Entered Mines 1074 | -10/Mines | Received a Mining Laser from a helpful Derelict 1081 | -10/Mines | Received a Rocket Launcher from a helpful Derelict 1081 | -10/Mines | Discovered new exit (range 13) 1571 | -10/Mines | Learned location of Storage (-7) 1680 | -10/Mines | Discovered new exit (range 9) 2038 | -10/Mines | Entered Materials 2038 | -9/Materials | Evolved 2 slots: Utility x1, Weapon x1 2641 | -9/Materials | Build established: Scavenger-Tank 2757 | -9/Materials | Identified exit to Mines 2757 | -9/Materials | Central database locked down 2796 | -9/Materials | Discovered new exit (range 10) 3102 | -9/Materials | Entered Mines 3349 | -9/Mines | A weapon hastily lodged in a ceiling crevice suddenly fell to the ground 3369 | -9/Mines | YI-UF0 nonchalantly dropped a Grenade Launcher on the ground 3372 | -9/Mines | Destroyed YI-UF0 3377 | -9/Mines | Found Prototype Storage 3377 | -9/Mines | Identified YI-UF0's Bottomless Matter Pit 3404 | -9/Mines | Learned location of 2 exits from Materials 3493 | -9/Mines | Deemed a non-threat by the Exiles lab entrance 3493 | -9/Mines | Discovered new exit (range 5) 3539 | -9/Mines | Assembled infested the area 3580 | -9/Mines | Entered Exiles 3601 | -9/Exiles | Discovered new exit (range 15) 3624 | -9/Exiles | Met 8R-AWN 3646 | -9/Exiles | Met EX-HEX 3732 | -9/Exiles | Met EX-DEC 3764 | -9/Exiles | Visited The Gauntlet 3988 | -9/Exiles | Learned location of Zion (-7) 4014 | -9/Exiles | Met EX-BIN 4292 | -9/Exiles | Discovered new exit (range 12) 4308 | -9/Exiles | Entered Mines 4678 | -8/Mines | Discovered new exit (range 12) 4917 | -8/Mines | Discovered new exit (range 5) 5056 | -8/Mines | Entered Materials 5056 | -8/Materials | Evolved 2 slots: Propulsion x2 5057 | -8/Materials | Identified exit to Factory 5233 | -8/Materials | Entered Factory 5233 | -7/Factory | Evolved 2 slots: Propulsion x1, Utility x1 5318 | -7/Factory | Discovered new exit (range 3) 5390 | -7/Factory | Build established: Sprinter 5771 | -7/Factory | Repaired Xenon Bombardment Thruster 5832 | -7/Factory | Repaired Imp. VTOL Module 5885 | -7/Factory | Repaired Imp. Assault Rifle 5924 | -7/Factory | Repaired Imp. Sensor Array 5977 | -7/Factory | Repaired Imp. Assault Rifle 5979 | -7/Factory | Discovered new exit (range 8) 5983 | -7/Factory | Discovered new exit (range 13) 6008 | -7/Factory | Hacking Suite fried by hacking feedback 6275 | -7/Factory | Discovered new exit (range 8) 6277 | -7/Factory | Identified exit to Lower Caves 6383 | -7/Factory | Garrison activated, responded to threat 6398 | -7/Factory | Discovered new exit (range 6) 6404 | -7/Factory | Identified exit to Storage 6619 | -7/Factory | Repaired Imp. Assault Rifle 6833 | -7/Factory | First assault squad dispatched 6844 | -7/Factory | Entered Lower Caves 6886 | -7/Lower Caves | Ambushed by wild Derelicts 7152 | -7/Lower Caves | Discovered new exit (range 7) 7153 | -7/Lower Caves | A Derelict revealed a hidden shortcut to a safe place 7155 | -7/Lower Caves | Identified exit to Zion 7155 | -7/Lower Caves | Entered Zion 7173 | -7/Zion | System corruption cleaned by Quarantine Array 7183 | -7/Zion | Discovered new exit (range 13) 7310 | -7/Zion | Learned location of 1 exit from Factory 7335 | -7/Zion | Identified exit to Deep Caves 7369 | -7/Zion | Given the Hacking Drone Bay 7414 | -7/Zion | Learned location of Warlord (-4) 7478 | -7/Zion | Saw the warning signs outside the Deep Caves entrance 7595 | -7/Zion | Build established: Mutant 7744 | -7/Zion | Visited the Megawrench Repair Shop 7744 | -7/Zion | Megawrench repaired 12 parts 7860 | -7/Zion | Entered Deep Caves 7935 | -7/Deep Caves | Attacked by Z-Imprinter 7941 | -7/Deep Caves | Z-Facility disabled 7985 | -7/Deep Caves | Destroyed Z-Imprinter 8011 | -7/Deep Caves | Lost 7 parts (1p1n3u2w) 8037 | -7/Deep Caves | Found Surveybot 24 Scanner 8038 | -7/Deep Caves | Found Surveybot 24 Chip 8090 | -7/Deep Caves | Found Prototype Protection 8090 | -7/Deep Caves | Identified Zio. Weapon Casing 8136 | -7/Deep Caves | Found Zio. Weapon Casing 8159 | -7/Deep Caves | Lost 4 parts (3n1u) 8308 | -7/Deep Caves | Found Prototype Protection 8308 | -7/Deep Caves | Identified Zio. Heavy Carapace 8429 | -7/Deep Caves | Discovered new exit (range 15) 8486 | -7/Deep Caves | Core integrity fell below 50% 8512 | -7/Deep Caves | Found Zio. Weapon Casing 8530 | -7/Deep Caves | Lost 3 parts (2n1u) 8680 | -7/Deep Caves | Spotted as-97035 8680 | -7/Deep Caves | Exposed GOLEM chamber 8721 | -7/Deep Caves | Core integrity fell below 20% 8723 | -7/Deep Caves | Destroyed by as-97035 with Assembled Focal Cannon Last Messages --------------- 08607_ Extracted 2 energy. 08607_ Acquired Zio. Biocell. 08618_ Acquired Zio. Glidesys I. 08637_ Dropped Imp. Assault Rifle. 08641_ Acquired Zio. Laser-S. 08681_ as-97035: "DSI9AT1D G8OHIBQ29FWG 26R186 QD12WHW8W33 TDK1 81FTS" 08683_ Zio. Glidesys I destroyed. 08683_ Zio. Light Carapace destroyed. 08683_ as-97035 suffers critical hit (Intensify). 08686_ Zio. Light Carapace destroyed. 08686_ Zio. Glidesys I destroyed. 08700_ Zio. Light Carapace destroyed. 08707_ Destroyed Flamer. 08710_ W8-RYP(b) destroyed. 08710_ UT-J66(M) destroyed. 08713_ Zio. Light DM Reactor destroyed. 08713_ Zio. Phaser-S destroyed. 08713_ Exp. Heat Sink destroyed. 08717_ Zio. Glidesys I destroyed. 08717_ Zio. Laser-S destroyed. Map ----- +----------------------------------------------------+ | ??????????????????????????????# #??????##### | | ??????????????????????????????# #??????# # ## | | ??????????????????????????????# #???#### | | ??????????????????????????????# #??## " | | ??????????????????????????????# #### | | ??????????????????????????????# | | ??????????????????????????????# ### | | ??????????????????????????????#### ###?## | | ????????????????????????? ?????####????# | | ?????????????????????? ?????????????# | | ???????????????????? = ?????????????### # | | ??????????????????[= #????????????# | | ??????????????? #??????????### | | ????????????? s #??????????# """ | | ??????????? == #?????????## "" | | ??????????? = l ##????????# | | ?????????? =[ * #?######## ### | | ?????????? * #?# ### | | ????????? = #?# ## | | ????????? == ### ###### | | ????????? ####### | | ????????""" | | ????????" G * | | ?????????" % ;# ###### | | ????????" % # #????# | | ?????????" @ ;# #????## | | ????????" ; # ;## ?????## | | ????????" #### #; ;; ##### #?????### | | ????????""" ???????# ## ####????###???????## # | | ???????????????????#??# #??????????????????#### | | ??????????????????????###?????????????????????? | | | | | | | | | | | | | | | | | | | | | | | | | | | | | | | | | | | | | | | +----------------------------------------------------+ Best States ------------- Heat Dissipation 60 Coolant Potential 65 Energy Generation 27 Energy Capacity 700 Matter Stores 377 Matter Capacity 1800 Sight Range 18 Robot Scan Range 15 Terrain Scan Density 10 Additional Mass Support 6 Armor Coverage 1200 Propulsion Shielding 66 Weapon Shielding 100 Evasion (%) 65 Targeting Accuracy 16 Recoil Reduction 2 Offensive Hacking 10 Defensive Hacking 10 Item Schematics ----------------- None Robot Schematics ------------------ None Fabricated ------------ Nothing Alien Tech Used ----------------- None Achievements -------------- Hard Hitter Challenges ------------ None Game ------ Seed InertialSpacefoldStreamer Manual? 0 Play Time 01:54:11 Cumulative 275.7 hours Start 2021.07.17 @ 09:30:31 End 2021.07.17 @ 17:49:07 Sessions 3 Manual Loads 0 Difficulty Rogue Special Mode None Game No. 148 Rogue 148 Adventurer 0 Explorer 0 Win Type - Total 8 Types 6/0/1/1/0/0/0/0/0 Lore% 76 Gallery% 82 Achievement% 62 Wizard Run 0 Options --------- ASCII 0 Keyboard 0 Movement Numpad Keybinds 0 Fullscreen 1 Font 18/SmallcapsGlow Map View 76x50 Tactical HUD 1 Map Filters NONE Filters NONE Steam 1 RUN: 122eaf24-dd06-4713-9ab1-6b9cc7b49a5c